bitfinex/quotes_ETHUSD_20260312
["timestamp","ask_amount","ask_price","bid_price","bid_amount"]
[1773341830220,0.01218475,2052.3,2051.9,1.81796289]
[1773341830990,0.6105092,2052.3,2051.9,3.59196289]
[1773341831810,0.59832445,2052.2,2051.8,2.37357993]
[1773341832013,0.6105092,2052.3,2051.9,0.59957993]
[1773341832416,0.001,2052.4,2052.0,0.59957993]
[1773341832615,0.59832445,2052.6,2051.8,0.60067993]
[1773341832922,0.001,2052.1,2051.8,0.60067993]
[1773341833323,0.001,2052.1,2052.0,0.59957993]
[1773341834900,0.59932445,2052.1,2051.8,0.0011]
[1773341835526,0.59932445,2052.1,2051.5,1.21967321]
[1773341835527,0.59832445,2052.0,2051.5,1.21967321]
[1773341835999,0.59832445,2052.0,2051.5,1.81925314]
[1773341836912,0.59832445,2052.0,2051.5,1.21967321]
[1773341837122,0.59832445,2052.0,2051.6,0.59957993]
[1773341837310,0.59832445,2052.0,2051.5,1.21967321]
[1773341837508,0.59832445,2052.0,2051.5,1.81925314]
[1773341838934,0.59832445,2052.0,2051.7,0.01218475]
[1773341841541,0.59832445,2052.0,2051.7,1.23068226]
[1773341843439,0.59832445,2052.0,2051.7,0.01218475]
[1773341844439,1.8166573,2052.0,2051.7,0.01218475]
[1773341844639,0.55861694,2051.9,2051.7,0.01218475]
[1773341845535,0.001,2051.8,2051.7,0.01328475]
[1773341845741,0.55961694,2051.8,2051.7,0.01328475]
[1773341846137,0.001,2051.8,2051.7,0.01328475]
[1773341847267,0.001,2051.8,2051.3,4.8760111]
[1773341847268,0.55861694,2051.7,2051.1,0.0011]
[1773341848843,0.55861694,2051.4,2050.9,0.0011]
[1773341849141,0.55861694,2051.2,2050.9,0.0011]
[1773341851241,0.55861694,2051.4,2050.9,1.74826044]
[1773341851644,0.55861694,2051.7,2051.0,0.52818341]
[1773341852048,0.55861694,2051.7,2050.9,0.52928341]
[1773341853155,0.57080474,2051.7,2050.9,0.52928341]
[1773341853523,0.55861694,2051.5,2051.0,0.52818341]
[1773341854242,0.0121878,2051.7,2051.0,0.52818341]
[1773341854430,0.55861694,2051.6,2051.0,0.52818341]
[1773341855034,0.55861694,2051.6,2051.1,2.30618341]
[1773341855231,0.55861694,2051.6,2051.1,0.52818341]
[1773341855435,1.78933209,2051.7,2051.1,0.52818341]
[1773341856255,1.78933209,2051.7,2051.1,1.74699901]
[1773341856851,1.78933209,2051.7,2051.2,0.52818341]
[1773341857530,0.55861694,2051.6,2051.0,0.52818341]
[1773341857933,0.55861694,2051.6,2051.1,0.0011]
[1773341858334,0.001,2051.4,2051.1,0.0011]
[1773341859224,0.001,2051.4,2051.1,0.52928341]
[1773341860456,0.0121878,2051.7,2051.3,0.52818341]
[1773341860760,0.55861694,2051.6,2051.1,1.74809372]
[1773341860962,0.55861694,2051.6,2051.1,0.52928341]
[1773341861162,0.55861694,2051.6,2051.1,1.74813585]
[1773341861651,0.55861694,2051.6,2051.1,0.52928341]
[1773341861824,0.55861694,2051.6,2051.1,0.0011]
[1773341862461,0.56659054,2051.3,2050.9,0.0011]
[1773341864852,1.78538929,2051.2,2050.9,0.0011]
[1773341865055,1.21879875,2051.2,2050.9,0.0011]
[1773341865948,4.875195,2051.3,2050.9,0.0011]
[1773341865949,1.78531853,2051.4,2050.9,0.56305539]
[1773341866141,0.56659054,2051.3,2050.9,0.56305539]
[1773341866550,0.56659054,2051.3,2050.9,0.0011]
[1773341866867,1.21879875,2051.2,2050.9,0.0011]
[1773341867070,1.78538929,2051.2,2050.9,0.0011]
[1773341867369,0.56659054,2051.2,2050.9,0.0011]
[1773341870568,1.78542596,2051.2,2050.9,0.0011]
[1773341871077,1.78542596,2051.2,2051.1,0.0011]
[1773341871278,1.78642596,2051.2,2051.1,0.0011]
[1773341871480,0.51661572,2051.1,2050.9,0.0011]
[1773341872940,1.73553332,2051.0,2050.7,0.01219085]
[1773341873174,0.51661572,2050.9,2050.5,0.51168766]
[1773341873569,0.51661572,2050.9,2050.4,0.0011]
[1773341873776,0.51661572,2050.9,2050.4,1.73205857]
[1773341874478,0.51661572,2050.9,2050.5,0.51168766]
[1773341875044,1.73561091,2050.9,2050.5,0.51168766]
[1773341875256,4.87567412,2051.0,2050.5,0.51168766]
[1773341875257,4.8755425,2051.1,2050.6,0.51168766]
[1773341875654,5.39215822,2051.1,2050.6,0.51168766]
[1773341876872,0.51661572,2051.0,2050.6,0.51168766]
[1773341877254,1.21897703,2050.9,2050.6,0.51168766]
[1773341877464,0.51661572,2050.8,2050.4,0.0011]
[1773341877876,2.64159911,2050.6,2050.2,0.94660214]
[1773341878047,0.51661572,2050.5,2050.2,1e-08]
[1773341878245,0.51661572,2050.5,2049.9,0.04874644]
[1773341878575,0.51661572,2050.5,2049.8,0.51168766]
[1773341878876,0.51661572,2050.5,2049.8,1.73131684]
[1773341879183,0.51661572,2050.5,2049.8,1.73131223]
[1773341879485,0.51661572,2050.5,2049.7,0.01219694]
[1773341879486,0.51661572,2050.2,2049.7,0.01219694]
[1773341879665,0.51661572,2050.2,2049.2,0.01219999]
[1773341879666,0.51661572,2049.9,2049.2,0.01219999]
[1773341879870,6.72819822,2050.2,2049.3,0.51168766]
[1773341879871,0.51661572,2050.1,2049.3,0.51168766]
[1773341880582,2.64159911,2050.1,2049.3,0.51168766]
[1773341880757,0.51661572,2050.0,2049.2,1.23218483]
[1773341881151,0.51661572,2050.0,2049.2,1.74387249]
[1773341881578,0.51661572,2049.9,2049.2,1.74387249]
[1773341882396,0.51661572,2049.9,2049.3,0.51168766]
[1773341883253,0.51661572,2050.1,2049.3,0.51168766]
[1773341883448,1.21951219,2050.0,2049.4,0.0011]
[1773341883661,0.51661572,2049.9,2049.4,0.0011]
[1773341884387,0.51661572,2049.9,2049.4,0.51278766]
[1773341885484,0.51661572,2050.1,2049.4,0.51278766]
[1773341885659,0.51661572,2050.0,2049.4,1.73261582]
[1773341887877,0.51661572,2050.1,2049.5,0.51168766]
[1773341888253,0.51661572,2050.1,2049.4,0.0011]
[1773341890883,0.51661572,2049.9,2049.4,0.0011]
[1773341892757,0.51661572,2049.8,2049.4,0.0011]
[1773341893861,0.51661572,2049.8,2049.4,0.51278766]
[1773341894066,0.51661572,2049.9,2049.4,0.51278766]
[1773341894496,0.51661572,2049.9,2049.4,0.0011]
[1773341894799,0.51661572,2049.7,2049.4,0.0011]
[1773341900764,0.001,2049.8,2049.4,0.51929753]
[1773341900970,0.001,2049.8,2049.5,0.56698991]
[1773341901790,0.001,2049.8,2049.5,0.51819753]
[1773341902186,0.53145638,2049.8,2049.5,0.51819753]
[1773341902381,0.53145638,2049.8,2049.4,0.0011]
[1773341902893,0.53145638,2049.8,2049.4,0.51929753]
[1773341903296,0.53145638,2049.8,2049.4,0.0011]
[1773341903695,0.53145638,2049.8,2049.4,0.51929753]
[1773341904978,0.001,2049.8,2049.5,0.51819753]
[1773341905379,3.15789522,2050.2,2049.6,0.51819753]
[1773341905984,0.53045638,2050.1,2049.5,0.51819753]
[1773341907197,0.53045638,2050.0,2049.5,1.73800084]
[1773341907708,0.53045638,2050.0,2049.6,0.0011]
[1773341908002,0.001,2049.6,2049.4,0.0011]
[1773341909100,0.53145638,2049.6,2049.4,0.0011]
[1773341912102,0.001,2049.6,2049.4,0.0011]
[1773341912480,0.001,2049.6,2049.4,0.51929753]
[1773341913406,0.001,2049.6,2049.4,1.73916661]
[1773341913580,0.001,2049.6,2049.4,0.51929753]
[1773341917379,0.001,2049.6,2049.5,0.51819753]
[1773341918813,0.001,2049.6,2049.4,0.51929753]
[1773341919498,1.21956189,2050.1,2049.4,1.22094339]
[1773341919499,0.53045638,2049.9,2049.4,1.22094339]
[1773341919824,1.21949483,2050.1,2049.5,0.51819753]
[1773341919825,0.53045638,2050.1,2049.5,0.51819753]
[1773341920108,0.53045638,2050.1,2049.7,0.51819753]
[1773341920706,0.53045638,2050.0,2049.7,0.51819753]
[1773341920908,0.53045638,2050.0,2049.6,0.0011]
[1773341922297,0.53045638,2050.0,2049.6,0.4802617]
[1773341922497,0.53045638,2050.0,2049.7,0.4791617]
[1773341922701,2.90801466,2050.2,2049.7,0.4791617]
[1773341923094,0.50915268,2050.1,2049.7,0.4791617]
[1773341925396,1.7286193,2050.1,2049.7,0.4791617]
[1773341925795,0.50915268,2050.0,2049.6,0.0011]
[1773341926110,0.50915268,2050.0,2049.6,0.4802617]
[1773341930138,1.72867803,2050.0,2049.6,0.4802617]
[1773341930622,0.50915268,2050.0,2049.6,0.4802617]
[1773341931409,0.001,2049.8,2049.6,0.4802617]
[1773341934286,0.50353516,2049.7,2049.4,0.0011]
[1773341934493,0.50353516,2049.7,2049.2,0.51648068]
[1773341934494,0.50353516,2049.6,2049.2,0.51648068]
[1773341934692,0.50353516,2049.4,2049.0,0.50428069]
[1773341935609,0.50353516,2049.6,2049.1,0.50538069]
[1773341936805,1.22067025,2049.8,2049.1,0.50538069]
[1773341937129,1.72420541,2049.8,2049.1,0.50538069]
[1773341937295,0.50353516,2049.7,2049.1,0.50538069]
[1773341938106,0.50353516,2049.6,2049.2,0.50428069]
[1773341939041,0.50353516,2049.5,2049.1,0.50538069]
[1773341940620,0.50353516,2049.5,2049.1,1.72542472]
[1773341940917,0.50353516,2049.5,2049.1,1.72541763]
[1773341941742,0.51573515,2049.7,2049.2,0.50428069]
[1773341942348,0.001,2049.8,2049.3,0.50428069]
[1773341942528,0.001,2049.8,2049.4,0.50428069]
[1773341942731,0.001,2049.8,2049.6,0.50428069]
[1773341947754,0.50453516,2049.8,2049.4,0.50428069]
[1773341947942,0.50353516,2049.7,2049.3,0.0011]
[1773341949276,0.50353516,2049.6,2049.3,0.0011]
[1773341952073,0.50453516,2049.8,2049.3,0.50538069]
[1773341953565,0.001,2049.8,2049.5,0.50428069]
[1773341955569,0.001,2049.6,2049.5,0.50428069]
[1773341955770,0.001,2049.6,2049.5,1.72409039]
[1773341956575,0.001,2049.6,2049.5,0.50428069]
[1773341956866,0.001,2049.6,2049.5,1.72409039]
[1773341958145,0.001,2049.6,2049.5,0.50428069]
[1773341958677,0.001,2049.6,2049.5,1.72409039]
[1773341959651,0.001,2049.6,2049.4,1.72411077]
[1773341960064,0.001,2049.6,2049.4,1.21983008]
[1773341960266,0.001,2049.6,2049.5,0.50428069]
[1773341960466,0.001,2049.6,2049.5,1.72409039]
[1773341961177,0.49999133,2050.0,2049.6,0.49308844]
[1773341962480,0.49999133,2050.0,2049.7,1.21969068]
[1773341962875,0.49999133,2050.0,2049.6,1.21970427]
[1773341963178,1.16559857,2050.1,2049.7,0.49308844]
[1773341963557,1.16559857,2050.1,2049.7,1.05852399]
[1773341963879,1.16559857,2050.1,2049.8,0.49308844]
[1773341964579,1.16559857,2050.1,2050.0,0.49308844]
[1773341964781,1.08878394,2050.1,2050.0,0.49308844]
[1773341965978,1.08878394,2050.1,2049.8,1.71270619]
[1773341967260,0.001,2049.9,2049.8,1.71270619]
[1773341969161,0.001,2049.9,2049.7,0.0011]
[1773341969355,0.001,2049.9,2049.7,1.71387775]
[1773341969767,0.001,2049.9,2049.7,0.49418844]
[1773341970090,0.001,2049.9,2049.7,1.71386821]
[1773341971892,0.001,2049.9,2049.7,0.49418844]
[1773341972201,0.50099133,2049.9,2049.7,0.0011]
[1773341976394,0.50099133,2049.9,2049.5,1.22090799]
[1773341977394,0.50099133,2049.9,2049.5,0.49418844]
[1773341977784,0.001,2049.9,2049.5,0.49418844]
[1773341978578,0.50099133,2049.9,2049.5,0.49418844]
[1773341979697,0.50099133,2049.9,2049.6,0.0011]
[1773341979898,0.50099133,2049.9,2049.6,0.49418844]
[1773341980673,0.50099133,2049.9,2049.6,0.0011]
[1773341981783,0.49999133,2049.8,2049.5,0.0011]
[1773341982733,0.47669776,2049.5,2049.3,0.0011]
[1773341983079,0.47669776,2049.3,2049.1,0.0011]
[1773341983286,1.05853343,2049.4,2049.1,0.0011]
[1773341983482,0.47669776,2049.3,2049.1,0.0011]
[1773341986175,0.47669776,2049.3,2049.0,0.49754878]
[1773341986375,0.47669776,2049.3,2049.0,1.71760611]
[1773341986578,0.47669776,2049.3,2049.0,0.49754878]
[1773341986779,0.47669776,2049.3,2049.0,1.71764803]
[1773341987814,0.47669776,2049.3,2049.0,1.71764902]
[1773341989579,0.47669776,2049.5,2049.0,1.22010024]
[1773341989880,0.47669776,2049.5,2049.1,0.49754878]
[1773341991423,0.47669776,2049.5,2049.2,1.68270634]
[1773341991711,0.49492182,2049.7,2049.3,0.46271806]
[1773341992987,0.54820768,2049.9,2049.3,0.46271806]
[1773341993193,1.03092951,2049.9,2049.3,0.46271806]
[1773341993393,1.03092951,2049.9,2049.5,1.68252776]
[1773341994886,1.03092951,2049.9,2049.6,0.46271806]
[1773341995107,0.54820768,2049.9,2049.6,0.46271806]
[1773341995488,0.001,2049.9,2049.7,1.21969068]
[1773341995810,0.001,2049.9,2049.8,0.46271806]
[1773341998114,0.01219694,2050.2,2049.8,0.46271806]
[1773341998285,0.01319694,2050.2,2049.8,0.46271806]
[1773341998490,0.001,2050.1,2049.8,0.46271806]
[1773342000488,0.48372183,2050.1,2049.8,0.46271806]
[1773342000686,0.48272183,2049.9,2049.3,0.46271806]
[1773342000906,0.48272183,2049.7,2049.2,1.23328476]
[1773342001122,0.48272183,2049.7,2049.2,1.23326372]
[1773342001607,0.48372183,2049.6,2049.2,0.47601805]
[1773342001807,0.48272183,2049.6,2049.2,0.47601805]
[1773342002420,0.48272183,2049.6,2049.2,1.69600358]
[1773342002631,0.48272183,2049.8,2049.3,0.46271806]
[1773342002794,0.001,2049.7,2049.3,0.46271806]
[1773342003124,0.48272183,2050.0,2049.4,0.46271806]
[1773342003330,0.001,2049.9,2049.4,0.46271806]
[1773342003727,0.48272183,2049.7,2049.2,0.01329999]
[1773342003899,0.48272183,2049.7,2049.2,1.23327342]
[1773342004416,0.48272183,2049.7,2049.2,0.01329999]
[1773342004794,0.48272183,2049.5,2049.2,0.01329999]
[1773342005116,0.001,2049.4,2049.2,0.01329999]
[1773342005420,0.48272183,2049.3,2049.0,0.0011]
[1773342005724,0.48272183,2049.1,2048.8,0.0011]
[1773342005893,0.48372183,2049.4,2048.9,0.46271806]
[1773342006292,0.48372183,2049.4,2048.9,0.51152473]
[1773342006818,0.001,2049.5,2049.1,0.46271806]
[1773342007019,0.001,2049.5,2048.9,1.68284926]
[1773342007020,0.48372183,2049.5,2048.9,1.68284926]
[1773342007197,0.48372183,2049.5,2048.8,1.22127077]
[1773342007392,0.48372183,2049.5,2048.8,1.68398883]
[1773342007725,0.48372183,2049.5,2048.9,0.46271806]
[1773342008122,0.001,2049.5,2048.9,0.46271806]
[1773342008796,0.001,2049.5,2049.0,1.68282542]
[1773342008992,0.001,2049.5,2049.1,0.46271806]
[1773342009552,0.01219694,2050.2,2049.2,0.46271806]
[1773342009704,0.01219694,2050.2,2049.4,0.46271806]
[1773342010198,0.01219694,2050.2,2049.7,0.46271806]
[1773342010627,0.01219694,2050.2,2049.7,0.45051807]
[1773342010927,0.01219694,2050.2,2049.9,0.46271806]
[1773342011230,0.38337858,2050.7,2050.0,0.46271806]
[1773342011434,0.01219389,2050.7,2050.0,0.46271806]
[1773342011638,0.01219389,2050.7,2050.1,0.46271806]
[1773342012312,0.48272183,2050.6,2050.1,0.46271806]
[1773342012515,0.48272183,2050.6,2049.9,0.46271806]
[1773342013093,0.48272183,2050.6,2050.0,1.21951219]
[1773342013293,1.23131039,2050.7,2050.1,0.46271806]
[1773342013528,0.49491572,2050.7,2050.1,0.46271806]
[1773342013900,0.01219389,2050.7,2050.1,0.46271806]
[1773342014243,0.001,2051.1,2050.4,0.46271806]
[1773342014442,0.001,2051.1,2050.5,0.46271806]
[1773342015099,0.001,2051.1,2050.6,1.21915536]
[1773342015440,0.001,2051.1,2050.7,0.46271806]
[1773342015935,0.001,2051.1,2050.9,0.46271806]
[1773342017266,0.48372183,2051.1,2050.5,0.46271806]
[1773342017475,0.001,2051.1,2050.5,0.46271806]
[1773342017842,0.001,2051.1,2050.6,0.46271806]
[1773342018069,0.001,2051.1,2050.7,0.46271806]
[1773342018369,0.001,2050.9,2050.7,0.46271806]
[1773342019145,0.001,2050.9,2050.8,1.68175453]
[1773342019342,0.001,2051.1,2050.9,0.46271806]
[1773342021184,0.0121878,2051.6,2051.1,0.48606282]
[1773342021476,0.45870702,2051.6,2051.1,0.48606282]
[1773342021880,0.47089482,2051.5,2050.9,0.48606282]
[1773342022045,0.45870702,2051.5,2050.9,0.48606282]
[1773342022579,0.0121878,2051.4,2050.9,0.48606282]
[1773342022872,0.47089482,2051.7,2050.9,0.48606282]
[1773342023078,0.0121878,2051.6,2050.9,0.48606282]
[1773342023370,0.0121878,2051.6,2051.1,0.48606282]
[1773342023571,1.23075223,2051.6,2051.1,0.48606282]
[1773342023875,0.45870702,2051.5,2050.9,1.70499977]
[1773342025380,0.45870702,2051.4,2050.9,0.48606282]
[1773342025558,0.47089482,2051.4,2050.6,1.70521818]
[1773342025960,0.45870702,2051.2,2050.4,1.70533573]
[1773342026181,0.45870702,2051.2,2050.4,1.70532367]
[1773342026679,0.45870702,2051.2,2050.4,1.21926085]
[1773342027683,0.45870702,2050.9,2050.2,1.23158432]
[1773342027886,0.45870702,2050.9,2050.3,0.48606282]
[1773342028057,0.0121878,2050.8,2050.3,0.48606282]
[1773342028255,4.87543269,2051.2,2050.3,0.48606282]
[1773342028256,0.0121878,2051.0,2050.3,0.48606282]
[1773342028460,1.67753702,2051.2,2050.2,1.23158432]
[1773342028776,0.45870702,2051.0,2050.2,1.23158432]
[1773342029095,0.45870702,2051.0,2050.3,0.48606282]
[1773342029253,1.67753702,2051.2,2050.3,0.48606282]
[1773342029682,0.45870702,2051.2,2050.5,0.48606282]
[1773342029891,1.67751566,2051.2,2050.5,0.48606282]
[1773342030189,1.67751566,2051.2,2050.6,0.02434205]
[1773342030400,1.67751566,2051.2,2050.5,0.48606282]
[1773342030682,0.001,2050.9,2050.5,0.48606282]
[1773342031276,0.001,2050.9,2050.4,1.22037428]
[1773342031474,0.45970702,2050.9,2050.4,1.22037428]
[1773342031854,1.67774349,2050.8,2050.4,0.0011]
[1773342032053,1.21903647,2050.8,2050.4,0.0011]
[1773342032685,0.45870702,2050.7,2050.4,0.0011]
[1773342032857,1.21903647,2050.8,2050.4,0.0011]
[1773342033185,1.6786904,2050.9,2050.4,0.0011]
[1773342033386,0.45870702,2050.8,2050.4,0.0011]
[1773342034606,0.45870702,2050.7,2050.4,0.0011]
[1773342036595,1.21915536,2050.6,2050.4,0.0011]
[1773342037177,1.67786238,2050.6,2050.2,1e-08]
[1773342037474,0.45870702,2050.5,2050.2,1e-08]
[1773342039089,1.67792341,2050.5,2050.2,1e-08]
[1773342040090,0.45870702,2050.4,2050.2,1e-08]
[1773342040980,1.67791079,2050.6,2050.2,1e-08]
[1773342042693,2.66007532,2050.8,2050.2,1e-08]
[1773342042906,0.001,2050.9,2050.2,0.47646611]
[1773342043106,0.001,2050.9,2050.4,0.4764661]
[1773342043617,0.01219085,2051.2,2050.9,0.4764661]
[1773342043971,0.01219085,2051.2,2050.9,0.46427222]
[1773342044586,1.23099061,2051.2,2050.5,0.4764661]
[1773342045104,0.01219085,2051.2,2050.7,0.4764661]
[1773342047315,0.01219085,2051.2,2050.8,1.21903647]
[1773342048094,0.01219085,2051.2,2050.9,0.4764661]
[1773342049271,1.23073296,2051.7,2051.1,0.4764661]
[1773342049471,0.001,2052.1,2051.5,0.4764661]
[1773342049979,0.001,2052.1,2051.8,0.4764661]
[1773342050184,0.01218475,2052.3,2051.8,0.4764661]
[1773342050698,1.21869641,2053.1,2052.3,0.68982545]
[1773342051477,0.65809921,2053.1,2052.0,0.68982545]
[1773342051707,0.001,2053.1,2052.1,0.68982545]
[1773342051886,0.65809921,2053.1,2052.1,0.68982545]
[1773342052212,0.01218171,2052.8,2052.1,0.68982545]
[1773342053206,0.01218171,2052.8,2051.7,0.68982545]
[1773342053207,0.66928092,2052.8,2051.7,0.68982545]
[1773342053374,0.65709921,2052.7,2051.7,0.68982545]
[1773342053588,0.65709921,2052.5,2051.5,5.56417017]
[1773342053797,0.65709921,2052.4,2051.5,0.68982545]
[1773342054495,1.21796745,2052.6,2051.8,0.68982545]
[1773342054896,0.65709921,2052.5,2051.5,0.68982545]
[1773342055532,1.21808614,2052.4,2051.6,1.90838657]
[1773342055823,0.001,2052.2,2051.6,0.68982545]
[1773342056192,0.001,2053.1,2051.6,0.68982545]
[1773342056398,1.21870082,2053.1,2052.4,0.68982545]
[1773342056715,1.87580003,2053.1,2052.1,0.68982545]
[1773342057128,1.21870082,2053.1,2052.1,0.68982545]
[1773342057308,1.87580003,2053.1,2052.1,0.68982545]
[1773342057640,0.001,2053.1,2052.3,0.68982545]
[1773342057799,0.001,2053.1,2052.4,0.68982545]
[1773342058526,0.001,2053.1,2052.7,0.68982545]
[1773342058822,0.001,2053.1,2052.3,0.68982545]
[1773342059034,0.001,2053.1,2052.5,2.6413582]
[1773342059194,0.001,2053.1,2052.6,0.68982545]
[1773342059699,0.001,2053.1,2052.7,0.68982545]
[1773342060427,0.001,2053.1,2052.6,1.21795629]
[1773342060630,0.001,2053.1,2052.7,0.68982545]
[1773342060827,0.01217866,2053.3,2052.9,0.68982545]
[1773342061337,0.65709921,2054.6,2053.4,0.68982545]
[1773342061534,0.65709921,2054.6,2053.2,7.9240746]
[1773342061535,0.01217258,2054.3,2053.6,0.68982545]
[1773342061833,1.22884152,2054.8,2053.8,0.68982545]
[1773342062429,1.88594073,2054.8,2053.6,0.68982545]
[1773342062735,0.65709921,2054.7,2053.6,0.68982545]
[1773342063245,2.6413582,2054.4,2053.3,0.68982545]
[1773342063404,0.65709921,2054.0,2053.0,0.68982545]
[1773342063717,1.21719655,2053.9,2053.0,0.68982545]
[1773342064500,2.6413582,2053.8,2052.7,1.90770134]
[1773342064699,3.29845741,2053.8,2052.7,0.68982545]
[1773342064930,2.6413582,2053.5,2052.4,0.68982545]
[1773342065136,0.65709921,2053.7,2052.4,0.68982545]
[1773342065387,0.65709921,2053.5,2052.4,0.68982545]
[1773342065510,1.442,2053.6,2052.4,0.68982545]
[1773342065706,3.29845741,2053.3,2052.3,0.01218171]
[1773342066031,2.6413582,2053.0,2052.3,0.01218171]
[1773342066243,0.65709921,2053.2,2052.1,4.70338344]
[1773342066408,0.65709921,2053.2,2052.0,0.68982545]
[1773342066615,0.65709921,2053.2,2052.1,0.68982545]
[1773342066818,1.21743364,2053.5,2052.1,0.68982545]
[1773342066819,1.87453285,2053.5,2052.1,0.68982545]
[1773342067133,3.29845741,2053.2,2052.1,0.68982545]
[1773342067440,3.29845741,2053.2,2051.7,9.29549896]
[1773342067441,2.6413582,2052.9,2051.8,1.90826779]
[1773342067728,1.87482936,2053.0,2051.8,1.90826779]
[1773342068027,1.87482936,2053.0,2051.9,0.68982545]
[1773342068736,1.21773015,2053.0,2052.1,0.68982545]
[1773342070042,2.6413582,2052.9,2052.3,0.01218171]
[1773342070200,0.65709921,2053.0,2051.9,1.90817274]
[1773342071033,3.29845741,2052.7,2051.7,0.01218475]
[1773342071235,2.6413582,2052.5,2051.7,0.01218475]
[1773342071435,0.65709921,2052.6,2051.7,1.23068302]
[1773342072101,4.5164842,2052.5,2051.7,0.01218475]
[1773342072531,0.65709921,2052.4,2051.7,0.01218475]
[1773342072703,1.21802679,2052.5,2051.8,0.68982545]
[1773342072904,1.21801224,2052.6,2051.8,0.68982545]
[1773342074325,0.66927787,2053.3,2052.0,0.68982545]
[1773342074551,0.002,2053.2,2052.6,0.68982545]
[1773342074856,0.002,2053.2,2052.8,0.68982545]
[1773342076434,0.002,2053.2,2052.6,1.21796745]
[1773342076667,0.002,2053.2,2052.6,1.9077929]
[1773342077024,0.01218171,2052.8,2052.6,1.9077929]
[1773342077722,0.002,2053.2,2052.6,1.9077929]
[1773342078259,0.002,2053.2,2052.4,1.21803286]
[1773342078564,0.65709921,2053.1,2052.3,1.21813096]
[1773342079125,0.65709921,2053.1,2052.1,5.56276131]
[1773342079854,0.65709921,2053.1,2052.2,0.68982545]
[1773342080056,0.002,2053.2,2052.4,0.68982545]
[1773342080374,0.002,2053.2,2052.5,0.04872107]
[1773342080553,0.002,2053.2,2052.6,1.21796745]
[1773342080730,0.002,2053.2,2052.6,1.8702548]
[1773342082355,0.002,2053.2,2052.6,1.21796745]
[1773342082564,0.002,2053.2,2052.4,1.87037349]
[1773342082922,0.64039877,2053.2,2052.1,4.60919173]
[1773342083121,0.63839877,2052.9,2051.7,0.6644721]
[1773342083326,0.63839877,2052.9,2051.8,4.873592]
[1773342083551,0.63839877,2052.9,2051.9,0.65228735]
[1773342084760,1.21784879,2052.8,2052.3,0.01218171]
[1773342085954,1.21784879,2052.8,2051.8,1.21840475]
[1773342085955,3.27975697,2052.7,2051.8,1.21840475]
[1773342086156,2.6413582,2052.7,2051.8,1.8706921]
[1773342086344,1.21783457,2052.9,2052.1,0.65228735]
[1773342086542,0.63839877,2052.8,2051.8,1.21840475]
[1773342086744,1.21790812,2052.7,2051.8,1.21840475]
[1773342087464,1.85612892,2053.1,2052.0,0.65228735]
[1773342087634,5.50942202,2053.0,2052.0,0.65228735]
[1773342088162,0.63839877,2052.9,2051.9,2.6413582]
[1773342088350,0.63839877,2052.9,2052.1,0.0011]
[1773342088938,0.63839877,2052.7,2052.1,0.0011]
[1773342089556,1.21784879,2052.8,2052.1,0.0011]
[1773342089557,0.63839877,2052.5,2052.1,0.0011]
[1773342090898,0.63839877,2052.5,2051.9,1.21947666]
[1773342091039,0.63839877,2051.8,2051.2,1.23097433]
[1773342091242,0.63839877,2051.8,2051.4,0.0011]
[1773342092172,0.63839877,2051.8,2050.9,1.22006709]
[1773342092173,0.63839877,2051.6,2050.9,1.22006709]
[1773342093471,0.63839877,2051.6,2050.9,0.0011]
[1773342093676,2.70534353,2052.0,2050.9,0.04985908]
[1773342093881,0.63839877,2052.2,2051.1,3.0207945]
[1773342094053,0.63839877,2052.5,2051.4,2.6413582]
[1773342094256,0.65058048,2052.8,2051.7,2.6413582]
[1773342094475,1.86843295,2052.8,2051.8,0.04873768]
[1773342094645,0.65058048,2052.8,2051.7,3.01795889]
[1773342094953,0.01218171,2052.8,2052.0,2.6413582]
[1773342095648,0.01218171,2052.8,2052.1,1.21826421]
[1773342095843,1.2300547,2052.8,2052.1,1.21826421]
[1773342096351,0.01218171,2052.8,2052.1,1.21826421]
[1773342096559,0.001,2053.0,2052.2,2.6413582]
[1773342097087,1.21873215,2053.0,2052.2,2.6413582]
[1773342097372,1.21873215,2053.0,2052.1,1.21826421]
[1773342097576,0.001,2053.0,2052.1,1.21826421]
[1773342098354,0.001,2053.0,2052.1,3.85962241]
[1773342098858,0.001,2053.0,2052.1,3.84743461]
[1773342099773,0.01218475,2052.3,2052.1,3.84743461]
[1773342099976,0.001,2053.0,2052.1,3.84743461]
[1773342100761,0.63939877,2053.0,2052.3,0.01218171]
[1773342100969,0.001,2052.8,2052.3,0.01218171]
[1773342101569,0.63839877,2052.7,2052.3,0.01218171]
[1773342103088,1.91217689,2052.6,2052.3,0.01218171]
[1773342103854,0.69420944,2052.5,2051.7,1.21850173]
[1773342104987,0.69420944,2052.5,2051.4,0.0011]
[1773342104988,0.69420944,2052.3,2051.4,0.0011]
[1773342105387,0.69420944,2052.3,2051.4,3.12240881]
[1773342105566,0.69420944,2052.3,2051.4,3.12070777]
[1773342106876,0.69420944,2052.3,2051.4,0.0011]
[1773342107079,1.91237424,2052.3,2051.4,0.0011]
[1773342109276,1.21806711,2052.5,2051.7,0.01218475]
[1773342109598,1.91227655,2052.5,2051.8,0.04873769]
[1773342109897,1.91227655,2052.5,2051.9,0.0487353]
[1773342110100,1.91227655,2052.5,2051.7,0.06092005]
[1773342110263,0.69420944,2052.4,2051.7,0.01218475]
[1773342111198,1.21814549,2052.3,2051.7,1.23064566]
[1773342111401,1.21814549,2052.3,2051.7,0.01218475]
[1773342111402,0.69284123,2052.2,2051.7,0.01218475]
[1773342112384,0.69284123,2052.0,2051.4,1.21977368]
[1773342113098,0.69284123,2052.0,2051.4,0.0011]
[1773342113295,0.69284123,2051.8,2051.4,0.0011]
[1773342115273,1.21850173,2051.7,2051.4,0.0011]
[1773342115471,0.69284123,2051.6,2051.4,0.0011]
[1773342117191,1.21862052,2051.5,2051.2,0.0121878]
[1773342117509,0.69284123,2051.4,2051.2,0.0121878]
[1773342118176,1.21853349,2051.7,2051.2,1.23097227]
[1773342118771,0.69284123,2051.6,2051.2,0.0121878]
[1773342119374,0.69284123,2051.4,2051.1,0.0011]
[1773342120099,0.69284123,2051.4,2051.1,1.2199543]
[1773342120303,1.9114521,2051.6,2051.1,1.2199543]
[1773342120502,0.69284123,2051.6,2051.1,1.2199543]
[1773342120701,1.45745083,2051.8,2051.1,1.2199543]
[1773342121178,0.69284123,2051.7,2051.1,1.2199543]
[1773342121381,1.91136588,2051.7,2051.1,0.0011]
[1773342121907,1.91135245,2051.7,2051.1,0.0011]
[1773342122402,0.69284123,2051.7,2051.1,0.0011]
[1773342122986,0.70502903,2051.7,2051.1,0.0011]
[1773342123313,0.0121878,2051.7,2051.1,0.45780294]
[1773342123606,0.0121878,2051.7,2051.2,1.21879875]